bitfinex-derivatives/quotes_BNBF0:USTF0_20250425
["timestamp","ask_amount","ask_price","bid_price","bid_amount"]
[1745549565867,1.14995054,598.9,598.28,1.071]
[1745549566167,1.14995054,598.89,598.28,1.071]
[1745549566564,1.14995054,598.88,598.28,1.071]
[1745549566762,1.14995054,598.87,598.28,1.071]
[1745549567066,1.25759526,600.51,598.28,1.071]
[1745549567067,1.14995054,598.86,598.28,1.071]
[1745549567667,1.14995054,598.85,598.28,1.071]
[1745549568270,1.14995054,598.84,598.28,1.071]
[1745549568470,1.14995054,598.84,598.29,0.30671914]
[1745549568672,1.14995054,598.83,598.29,0.30671914]
[1745549568972,1.14995054,598.82,598.29,0.30671914]
[1745549569166,1.14995054,598.81,598.29,0.30671914]
[1745549569367,1.14995054,598.81,598.28,1.071]
[1745549569566,1.14995054,598.8,598.29,0.30672042]
[1745549570072,1.14995054,598.79,598.29,0.30672042]
[1745549570671,1.25759526,600.56,598.29,0.30672042]
[1745549570672,1.14995054,598.78,598.29,0.30672042]
[1745549571072,1.14995054,598.78,598.3,0.30672004]
[1745549571272,1.14995054,598.78,598.29,0.30672004]
[1745549571574,1.14995054,598.77,598.29,0.30672004]
[1745549572067,1.14995054,598.76,598.29,0.30672004]
[1745549572673,1.14995054,598.75,598.29,0.30672004]
[1745549572975,1.14995054,598.74,598.29,0.30672004]
[1745549573573,1.14995054,598.73,598.29,0.30672004]
[1745549574172,1.25759526,600.24,598.29,0.30672004]
[1745549574173,1.14995054,598.72,598.29,0.30672004]
[1745549574673,1.14995054,598.71,598.29,0.30672004]
[1745549575173,1.14995054,598.7,598.29,0.30672004]
[1745549575471,1.14995054,598.7,598.3,1.0596617]
[1745549575672,1.14995054,598.69,598.31,0.30672004]
[1745549576375,1.14995054,598.68,598.31,0.30672004]
[1745549576777,1.14995054,598.67,598.31,0.30672004]
[1745549577383,1.14995054,598.67,598.32,0.30672554]
[1745549577580,1.14995054,598.66,598.31,0.30672554]
[1745549577777,1.14995054,598.66,598.32,0.30672554]
[1745549578082,1.14995054,598.66,598.33,0.30672554]
[1745549578284,1.14995054,598.65,598.29,0.30672554]
[1745549578585,1.14995054,598.64,598.3,0.30672554]
[1745549578884,1.14995054,598.64,598.31,0.30672554]
[1745549579184,1.25759526,600.18,598.32,0.30672554]
[1745549579386,1.25759526,600.18,598.33,0.30672554]
[1745549579585,1.25759526,600.18,598.29,0.30672554]
[1745549579780,1.25759526,600.18,598.3,0.30672554]
[1745549579980,1.25759526,600.18,598.29,0.30672554]
[1745549580180,1.25759526,600.18,598.3,0.30672554]
[1745549580181,0.29056054,600.17,598.3,0.30672554]
[1745549580381,2.70713356,600.17,598.31,0.30672692]
[1745549580583,2.70713356,600.17,598.28,1.071]
[1745549580584,2.70713356,600.17,598.29,0.30672692]
[1745549580783,1.15897776,600.16,598.31,0.843]
[1745549580984,1.15897776,600.16,598.32,0.30672692]
[1745549581181,1.15897776,600.15,598.32,0.30672692]
[1745549581786,1.15897776,600.14,598.32,0.30672692]
[1745549582289,1.15897776,600.13,598.32,0.30672692]
[1745549582688,1.15897776,600.12,598.32,0.30672692]
[1745549582890,1.25759526,600.09,598.32,0.30672692]
[1745549583087,1.15897776,600.08,598.32,0.30672692]
[1745549583889,1.15897776,600.07,598.32,0.30672692]
[1745549584490,1.15897776,600.06,598.32,0.30672692]
[1745549585090,1.15897776,600.05,598.32,0.30672692]
[1745549585390,1.15897776,600.04,598.32,0.30672692]
[1745549585890,1.15897776,600.03,598.32,0.30672692]
[1745549586186,1.15897776,600.03,598.33,0.30674521]
[1745549586390,0.2905751,600.02,598.32,0.30674521]
[1745549586691,1.15897776,600.01,598.33,0.30674521]
[1745549586891,1.15897776,600.0,598.32,0.30674521]
[1745549587191,1.15897776,600.0,598.33,0.30674521]
[1745549587486,1.15897776,599.99,598.34,0.30674521]
[1745549587690,1.15897776,599.99,598.35,0.30671116]
[1745549587891,1.15897776,599.98,598.32,0.30671116]
[1745549588090,1.15897776,599.98,598.33,0.30671116]
[1745549588291,1.15897776,599.97,598.38,1.0596617]
[1745549588487,1.15897776,599.97,598.39,0.30671116]
[1745549588687,1.15897776,599.96,598.39,0.959]
[1745549589287,1.44957105,599.95,598.39,0.959]
[1745549589788,1.15897776,599.94,598.39,0.959]
[1745549590094,1.15897776,599.93,598.4,1.223]
[1745549590689,1.15897776,599.92,598.4,1.223]
[1745549591195,1.15897776,599.91,598.4,1.223]
[1745549591590,1.15897776,599.9,598.4,1.223]
[1745549592292,1.15897776,599.89,598.4,1.223]
[1745549592798,1.15897776,599.88,598.4,1.223]
[1745549593295,1.15897776,599.87,598.4,1.223]
[1745549593797,1.15897776,599.86,598.4,1.223]
[1745549594201,1.15897776,599.86,598.4,2.266]
[1745549594498,1.15897776,599.85,598.4,2.266]
[1745549594997,1.15897776,599.84,598.4,2.266]
[1745549595393,1.44962202,599.84,598.4,2.266]
[1745549595898,1.15897776,599.83,598.4,2.266]
[1745549596096,1.15897776,599.82,598.4,2.266]
[1745549596898,1.15897776,599.81,598.4,2.266]
[1745549597801,1.15897776,599.8,598.4,2.266]
[1745549598199,1.15897776,599.79,598.4,2.266]
[1745549598804,1.15897776,599.78,598.4,2.266]
[1745549599200,1.15897776,599.77,598.4,2.266]
[1745549599502,1.15897776,599.76,598.4,2.266]
[1745549599798,1.15897776,599.75,598.4,2.266]
[1745549600397,1.15897776,599.74,598.4,2.266]
[1745549600901,1.15897776,599.73,598.4,2.266]
[1745549601304,1.15897776,599.72,598.4,2.266]
[1745549601602,1.15897776,599.71,598.4,2.266]
[1745549602097,0.29063455,599.7,598.4,2.266]
[1745549602601,1.15897776,599.69,598.4,2.266]
[1745549602998,1.15897776,599.69,598.41,0.30676595]
[1745549603297,1.15897776,599.68,598.41,0.30676595]
[1745549603698,1.15897776,599.67,598.41,0.30676595]
[1745549604003,1.15897776,599.66,598.41,0.30676595]
[1745549604898,1.15897776,599.65,598.41,0.30676595]
[1745549605505,1.15897776,599.64,598.41,0.30676595]
[1745549606206,1.15897776,599.64,598.4,3.106]
[1745549606207,1.15897776,599.63,598.4,3.106]
[1745549606505,1.15897776,599.62,598.41,0.30672139]
[1745549607009,1.15897776,599.61,598.41,0.30672139]
[1745549607507,1.15897776,599.6,598.41,0.30672139]
[1745549608006,1.15897776,599.59,598.41,0.30672139]
[1745549608509,1.15897776,599.58,598.41,0.30672139]
[1745549608807,1.15897776,599.58,598.4,3.106]
[1745549609102,1.15897776,599.57,598.41,0.30667087]
[1745549609303,1.15897776,599.56,598.41,0.30667087]
[1745549609908,1.15897776,599.55,598.41,0.30667087]
[1745549610509,1.15897776,599.54,598.41,0.30667087]
[1745549610909,1.15897776,599.54,598.4,3.106]
[1745549611109,1.15897776,599.53,598.41,0.30666959]
[1745549611706,1.15897776,599.52,598.41,0.30666959]
[1745549612408,1.15897776,599.51,598.41,0.30666959]
[1745549612610,1.15897776,599.51,598.4,3.106]
[1745549612910,1.15897776,599.5,598.4,3.106]
[1745549613112,1.15897776,599.49,598.4,3.106]
[1745549613412,1.15897776,599.48,598.4,3.106]
[1745549613710,1.15897776,599.48,598.4,4.388]
[1745549614012,1.15897776,599.47,598.4,4.388]
[1745549614706,1.15897776,599.46,598.4,4.388]
[1745549615111,1.15897776,599.45,598.4,4.388]
[1745549615411,1.15897776,599.44,598.4,4.388]
[1745549616112,1.15897776,599.43,598.4,4.388]
[1745549616713,1.15897776,599.42,598.4,4.388]
[1745549617113,1.15897776,599.41,598.4,4.388]
[1745549617616,1.15897776,599.4,598.4,4.388]
[1745549617916,1.15897776,599.39,598.4,4.388]
[1745549618217,1.15897776,599.38,598.4,4.388]
[1745549618918,1.15897776,599.37,598.4,4.388]
[1745549619717,1.15897776,599.36,598.4,4.388]
[1745549619917,1.15897776,599.35,598.4,4.388]
[1745549620118,1.15897776,599.34,598.4,4.388]
[1745549620319,1.15897776,599.33,598.4,4.388]
[1745549620620,1.15897776,599.32,598.4,4.388]
[1745549621319,1.15897776,599.31,598.4,4.388]
[1745549621520,1.15897776,599.3,598.4,3.13438379]
[1745549621716,1.15897776,599.3,598.4,2.122]
[1745549622118,1.15897776,599.29,598.4,2.122]
[1745549623119,1.15897776,599.28,598.4,2.122]
[1745549623520,1.15897776,599.27,598.4,2.122]
[1745549624330,0.29082765,599.34,598.4,2.122]
[1745549624331,1.15897776,599.26,598.4,2.122]
[1745549624822,1.15897776,599.25,598.4,2.122]
[1745549625220,1.15897776,599.24,598.4,1.282]
[1745549625819,1.15897776,599.23,598.4,1.282]
[1745549626523,1.15897776,599.22,598.4,1.282]
[1745549626823,1.15897776,599.21,598.4,1.282]
[1745549627221,1.15897776,599.2,598.4,1.282]
[1745549627724,1.15897776,599.19,598.4,1.282]
[1745549627927,1.15897776,599.18,598.4,1.282]
[1745549628226,1.44984308,599.18,598.4,1.282]
[1745549628426,1.15897776,599.17,598.4,1.282]
[1745549628819,1.15897776,599.16,598.4,1.282]
[1745549629323,1.15897776,599.15,598.4,1.282]
[1745549629923,1.15897776,599.14,598.4,1.282]
[1745549630423,1.15897776,599.13,598.4,1.282]
[1745549631022,1.15897776,599.12,598.4,1.282]
[1745549631225,1.15897776,599.11,598.4,1.282]
[1745549631721,1.15897776,599.1,598.4,0.02784117]
[1745549631924,1.15897776,599.1,598.31,1.101]
[1745549632120,1.15897776,599.09,598.31,1.101]
[1745549632320,1.15897776,599.08,598.31,1.101]
[1745549633137,1.15897776,599.07,598.31,1.101]
[1745549633626,1.15897776,599.06,598.31,1.101]
[1745549634328,1.44990874,599.05,598.31,1.101]
[1745549634520,1.15897776,599.05,598.31,1.101]
[1745549634726,1.15897776,599.04,598.31,1.101]
[1745549635326,1.15897776,599.03,598.31,1.101]
[1745549635528,1.15897776,599.02,598.31,1.101]
[1745549636029,1.15897776,599.01,598.31,1.101]
[1745549636628,0.29093341,599.03,598.31,1.101]
[1745549636629,1.15897776,599.0,598.31,1.101]
[1745549637329,1.44990874,598.99,598.31,1.101]
[1745549637523,1.15897776,598.99,598.31,1.101]
[1745549637825,1.15897776,598.98,598.31,1.101]
[1745549638230,1.15897776,598.97,598.31,1.101]
[1745549638426,1.44993185,598.97,598.31,1.101]
[1745549638931,1.15897776,598.96,598.31,1.101]
[1745549639326,1.15897776,598.95,598.31,1.101]
[1745549639733,1.15897776,598.94,598.31,1.101]
[1745549640031,1.15897776,598.93,598.31,1.101]
[1745549640526,1.15897776,598.92,598.31,1.101]
[1745549640837,1.15897776,598.91,598.31,1.101]
[1745549641432,1.15897776,598.9,598.31,1.101]
[1745549641933,1.15897776,598.89,598.31,1.101]
[1745549642333,1.15897776,598.88,598.31,1.101]
[1745549642732,1.15897776,598.87,598.31,1.101]
[1745549642933,1.15897776,598.86,598.31,1.101]
[1745549643335,1.44992212,598.86,598.31,1.101]
[1745549643535,1.15897776,598.85,598.31,1.101]
[1745549644235,1.15897776,598.84,598.31,1.101]
[1745549644736,1.15897776,598.83,598.31,1.101]
[1745549645435,1.15897776,598.82,598.31,1.101]
[1745549646238,1.15897776,598.81,598.31,1.101]
[1745549646433,1.44994036,598.81,598.31,1.101]
[1745549646839,1.15897776,598.8,598.31,1.101]
[1745549647439,1.15897776,598.79,598.31,1.101]
[1745549648343,1.15897776,598.78,598.31,1.101]
[1745549648638,1.15897776,598.77,598.31,1.101]
[1745549649238,1.15897776,598.76,598.31,1.101]
[1745549649443,1.15897776,598.75,598.31,1.101]
[1745549650043,1.15897776,598.74,598.31,1.101]
[1745549650343,1.15897776,598.73,598.31,1.101]
[1745549651041,1.15897776,598.72,598.31,1.101]
[1745549651343,1.15897776,598.71,598.31,1.101]
[1745549652342,1.15897776,598.7,598.31,1.101]
[1745549652743,1.15897776,598.69,598.31,1.101]
[1745549652940,1.15897776,598.68,598.31,1.101]
[1745549653343,1.15897776,598.67,598.31,1.101]
[1745549654045,1.15897776,598.66,598.31,1.101]
[1745549654748,1.15897776,598.65,598.31,1.101]
[1745549654949,1.15897776,598.65,597.1,1.0596617]
[1745549655150,1.15897776,598.65,597.21,0.29096138]
[1745549655343,1.15897776,598.65,597.22,0.30718307]
[1745549655542,1.15897776,598.64,597.1,1.0596617]
[1745549655744,1.15897776,598.64,597.11,0.30718543]
[1745549655943,1.15897776,598.64,597.12,0.30718543]
[1745549656148,1.15897776,598.64,597.13,0.30718543]
[1745549656349,1.15897776,598.63,597.11,0.30718543]
[1745549656645,1.15897776,598.63,597.12,0.30718543]
[1745549656849,1.15897776,598.62,597.14,0.29112203]
[1745549657051,1.15897776,598.62,597.15,0.30718543]
[1745549657250,1.15897776,598.61,597.15,0.30718543]
[1745549657446,1.15897776,598.6,597.15,0.30718543]
[1745549657649,1.15897776,598.6,597.15,1.37618543]
[1745549657849,1.15897776,598.6,597.16,0.30718543]
[1745549658252,1.15897776,598.59,597.16,0.30718543]
[1745549658852,1.15897776,598.58,597.17,0.30718543]
[1745549659052,1.15897776,598.58,597.18,0.30718543]
[1745549659251,1.15897776,598.57,597.19,0.30718543]
[1745549659453,1.15897776,598.56,597.2,0.30718543]
[1745549659649,1.15897776,598.56,597.21,0.30718543]
[1745549659847,1.15897776,598.56,597.22,0.30718543]
[1745549660049,1.15897776,598.55,597.23,0.30718543]
[1745549660253,1.15897776,598.55,597.24,0.30718543]
[1745549660551,1.15897776,598.55,597.25,0.30718543]
[1745549660748,1.15897776,598.54,597.26,0.30718543]
[1745549660951,1.15897776,598.54,597.27,0.30718543]
[1745549661153,1.15897776,598.53,597.28,0.30718543]
[1745549661348,1.15897776,598.53,597.16,0.30718543]
[1745549661548,1.15897776,598.53,597.17,0.30718543]
[1745549661754,1.15897776,598.52,597.16,0.30718543]
[1745549662053,1.15897776,598.51,597.17,0.30718543]
[1745549662254,1.15897776,598.51,597.16,0.30718543]
[1745549662553,1.15897776,598.5,597.16,0.30718543]
[1745549662856,1.15897776,598.49,597.16,0.30718543]
[1745549663254,1.15897776,598.49,597.15,1.069]
[1745549663457,1.15897776,598.48,597.16,0.30713153]
[1745549663758,1.15897776,598.47,597.16,0.30713153]
[1745549664355,1.15897776,598.46,597.16,0.30713153]
[1745549664657,1.15897776,598.45,597.16,0.30713153]
[1745549664853,1.15897776,598.45,597.15,1.3600989]
[1745549665052,1.15897776,598.45,597.16,0.30712993]
[1745549665253,1.15897776,598.44,597.16,0.30712993]
[1745549665654,1.15897776,598.43,597.16,0.30712993]
[1745549665857,1.15897776,598.42,597.16,0.30712993]
[1745549666558,1.15897776,598.41,597.17,0.3071316]
[1745549666759,1.15897776,598.41,597.18,0.3071316]
[1745549666962,1.15897776,598.41,597.19,0.3071316]
[1745549667260,1.15897776,598.4,597.2,0.3071316]
[1745549667461,1.15897776,598.4,597.21,0.3071316]
[1745549667663,1.15897776,598.39,597.22,0.3071316]
[1745549667857,1.15897776,598.39,597.23,0.3071316]
[1745549668160,1.15897776,598.38,597.24,0.3071316]
[1745549668361,1.15897776,598.38,597.25,0.3071316]
[1745549668554,1.15897776,598.37,597.26,0.3071316]
[1745549668758,1.15897776,598.37,597.27,0.3071316]
[1745549668961,1.15897776,598.36,597.28,0.3071316]
[1745549669160,1.15897776,598.36,597.29,0.3071316]
[1745549669356,1.15897776,598.35,597.18,0.29109768]
[1745549669555,1.25759526,599.93,597.19,0.30710816]
[1745549669556,1.15897776,598.34,597.19,0.30710816]
[1745549669755,1.15897776,598.34,597.2,0.30710816]
[1745549669954,1.15897776,598.34,597.21,0.30710816]
[1745549670160,1.15897776,598.34,597.22,0.30710816]
[1745549670361,1.15897776,598.33,597.23,0.30710816]
[1745549670557,1.15897776,598.33,597.24,0.30710816]
[1745549670763,1.15897776,598.32,597.25,0.30710816]
[1745549671063,1.15897776,598.32,597.15,1.069]
[1745549671364,1.15897776,598.31,597.21,0.2911062]
[1745549671664,1.15897776,598.3,597.22,0.30710336]
[1745549671863,1.15897776,598.3,597.23,0.30710336]
[1745549672059,1.15897776,598.3,597.24,0.30710336]
[1745549672263,1.15897776,598.3,597.25,0.30710336]
[1745549672465,1.15897776,598.3,597.21,0.2911062]
[1745549672466,1.15897776,598.29,597.47,1.0596617]
[1745549672662,1.15897776,598.29,597.48,0.30710336]
[1745549672866,1.15897776,598.28,597.48,0.30710336]
[1745549673063,1.25759526,599.71,597.49,0.30710336]
[1745549673267,1.25759526,599.71,597.48,0.30710336]
[1745549673460,1.25759526,599.71,597.49,0.30710336]
[1745549673661,1.25759526,599.71,597.48,0.30710336]
[1745549673963,1.10437341,599.7,597.48,0.30710336]
[1745549674163,1.39525454,599.7,597.47,1.0596617]
[1745549674364,1.39525454,599.7,597.48,0.30706177]
[1745549674563,1.10437341,599.69,597.48,0.30706177]
[1745549674762,1.10437341,599.68,597.48,0.30706177]
[1745549675067,1.10437341,599.67,597.48,0.30706177]
[1745549675367,1.10437341,599.67,597.49,1.009]
[1745549675567,0.29088113,599.7,597.49,1.009]
[1745549675568,1.10437341,599.66,597.54,1.0596617]
[1745549675768,1.10437341,599.66,597.55,0.30706177]
[1745549676064,1.10437341,599.65,597.55,0.30706177]
[1745549676368,1.39525697,599.65,597.55,0.30706177]
[1745549676769,1.10437341,599.64,597.55,0.30706177]
[1745549677167,1.10437341,599.64,597.49,1.009]
[1745549677368,1.10437341,599.64,597.5,0.30706242]
[1745549677568,1.10437341,599.63,597.5,0.30706242]
[1745549678269,1.10437341,599.62,597.5,0.30706242]
[1745549678565,1.10437341,599.61,597.5,0.30706242]
[1745549678769,1.10437341,599.61,597.49,1.009]
[1745549678970,1.10437341,599.6,597.5,0.30703186]
[1745549679569,1.10437341,599.59,597.5,0.30703186]
[1745549679869,1.10437341,599.58,597.5,0.30703186]
[1745549680067,1.10437341,599.57,597.5,0.30703186]
[1745549680368,1.10437341,599.56,597.49,1.009]
[1745549680563,1.10437341,599.56,597.5,0.30702738]
[1745549680767,1.10437341,599.55,597.5,0.30702738]
[1745549680968,1.10437341,599.54,597.5,0.30702738]
[1745549681368,1.10437341,599.53,597.51,0.845]
[1745549681568,1.10437341,599.53,597.52,0.30702738]
[1745549682171,1.10437341,599.52,597.52,0.30702738]
[1745549682363,1.39525454,599.52,597.52,0.30702738]
[1745549682766,1.10437341,599.51,597.52,0.30702738]
[1745549683570,1.10437341,599.5,597.51,0.845]
[1745549683763,1.10437341,599.5,597.52,0.30703248]
[1745549684070,1.10437341,599.49,597.52,0.30703248]
[1745549684771,1.10437341,599.48,597.52,0.30703248]
[1745549685273,1.10437341,599.47,597.53,0.30704282]
[1745549685474,1.10437341,599.46,597.52,0.30704282]
[1745549685774,1.10437341,599.45,597.52,0.30704282]
[1745549686174,1.10437341,599.44,597.52,1.50704282]
[1745549686372,1.10437341,599.44,597.53,0.30704282]
[1745549686772,1.10749701,599.43,597.53,0.30704282]
[1745549686971,1.10749701,599.42,597.53,0.30704282]
[1745549687979,1.10749701,599.41,597.53,0.30704282]
[1745549688276,1.39839029,599.41,597.52,1.2]
[1745549688479,1.10749701,599.4,597.53,0.30704917]
[1745549688877,1.10749701,599.39,597.53,0.30704917]
[1745549689178,1.10749701,599.38,597.53,0.30704917]
[1745549689573,1.10749701,599.37,597.53,0.30704917]
[1745549689778,1.10749701,599.36,597.53,0.30704917]
[1745549690178,1.10749701,599.35,597.53,0.30704917]
[1745549690578,1.10749701,599.34,597.53,0.30704917]
[1745549691278,1.398383,599.33,597.53,0.30704917]
[1745549691672,1.10749701,599.32,597.53,0.30704917]
[1745549691974,1.10749701,599.31,597.53,0.30704917]
[1745549692278,1.39838057,599.31,597.53,0.30704917]
[1745549692478,1.10749701,599.3,597.53,0.30704917]
[1745549692979,1.10749701,599.29,597.53,0.30704917]
[1745549693178,1.10749701,599.28,597.53,0.30704917]
[1745549693478,1.10749701,599.27,597.53,0.30704917]
[1745549693679,1.10749701,599.26,597.53,0.30704917]
[1745549694179,0.29089085,599.25,597.53,0.30704917]
[1745549694375,1.39838786,599.25,597.59,1.0596617]
[1745549694574,1.10749701,599.24,597.6,0.30704917]
[1745549694879,1.10749701,599.23,597.6,0.30704917]
[1745549695072,1.10749701,599.22,597.6,0.30704917]
[1745549696079,1.10749701,599.21,597.6,0.30704917]
[1745549696482,1.10749701,599.2,597.6,0.30704917]
[1745549696681,1.10749701,599.19,597.6,0.30704917]
[1745549697176,1.10749701,599.18,597.56,0.30704917]
[1745549697380,1.10749701,599.17,597.57,0.30704917]
[1745549697586,1.10749701,599.17,597.56,0.30704917]
[1745549697877,1.10749701,599.16,597.58,0.865]
[1745549698079,1.10749701,599.16,597.59,0.30704917]
[1745549698482,1.10749701,599.15,597.59,0.30704917]
[1745549698877,1.10749701,599.14,597.59,0.30704917]
[1745549700082,1.10749701,599.13,597.59,0.30704917]
[1745549700583,1.10749701,599.12,597.59,0.30704917]
[1745549701180,1.10749701,599.11,597.59,0.30704917]
[1745549701785,1.10749701,599.1,597.59,0.30704917]
[1745549702081,1.10749701,599.09,597.59,0.30704917]
[1745549702380,1.10749701,599.09,597.6,0.827]
[1745549702588,1.10749701,599.09,597.61,0.30704917]
[1745549702784,1.10749701,599.08,597.61,0.30704917]
[1745549703382,1.39842191,599.07,597.61,0.30704917]
[1745549703586,1.10749701,599.06,597.61,0.30704917]
[1745549703983,1.10749701,599.05,597.61,0.30704917]
[1745549704379,1.10749701,599.04,597.61,0.30704917]
[1745549704685,1.10749701,599.04,597.6,0.827]
[1745549704886,1.10749701,599.03,597.61,0.30703804]
[1745549705481,1.10749701,599.02,597.61,0.30703804]
[1745549706185,1.10749701,599.01,597.61,0.30703804]
[1745549706582,1.10749701,599.0,597.61,0.30703804]
[1745549707287,1.10749701,598.99,597.61,0.30703804]
[1745549707485,1.10749701,598.99,597.62,1.031]
[1745549708083,1.10749701,598.98,597.62,1.031]
[1745549708383,1.10749701,598.97,597.62,1.031]
[1745549708688,1.10749701,598.96,597.62,1.031]
[1745549709189,1.10749701,598.95,597.62,1.031]
[1745549709891,1.10749701,598.94,597.62,1.031]
[1745549710292,1.10749701,598.93,597.62,1.031]
[1745549710887,1.10749701,598.92,597.62,1.031]
[1745549711493,1.10749701,598.92,597.63,0.30712093]
[1745549711696,1.10749701,598.92,597.62,1.031]
[1745549711992,1.10749701,598.91,597.62,1.031]
[1745549712693,1.10749701,598.9,597.62,1.031]
[1745549713192,1.10749701,598.89,597.62,1.031]
[1745549713595,1.10749701,598.88,597.62,1.031]
[1745549714492,1.10749701,598.87,597.63,0.30708628]
[1745549715095,1.10749701,598.86,597.63,0.30708628]
[1745549715292,1.10749701,598.86,597.62,1.031]
[1745549715595,1.10749701,598.86,597.63,0.30708205]
[1745549715795,1.10749701,598.85,597.63,0.30708205]
[1745549716296,1.10749701,598.84,597.63,0.30708205]
[1745549716694,1.10749701,598.83,597.63,0.30708205]
[1745549716891,1.10749701,598.82,597.63,0.30708205]
[1745549717191,1.10749701,598.81,597.62,1.031]
[1745549717696,1.10749701,598.81,597.34,0.29099666]
[1745549717898,1.10749701,598.81,597.35,0.30710321]
[1745549718197,1.10749701,598.8,597.35,0.30710321]
[1745549718391,1.10749701,598.8,597.34,0.59812908]
[1745549718593,1.10749701,598.8,597.35,0.30710321]
[1745549718893,1.10749701,598.79,597.35,0.30710321]
[1745549719499,1.10749701,598.78,597.35,0.30710321]
[1745549719797,1.10749701,598.77,597.35,0.30710321]
[1745549720297,1.10749701,598.76,597.35,0.30710321]
[1745549721093,1.10749701,598.75,597.36,0.30710321]
[1745549721299,1.10749701,598.75,597.37,0.30710321]
[1745549721498,1.10749701,598.74,597.38,0.30712247]
[1745549721699,1.10749701,598.73,597.39,0.30712247]
[1745549721895,1.10749701,598.73,597.4,0.30712247]
[1745549722095,1.10749701,598.72,597.33,0.30712247]
[1745549722898,1.10749701,598.72,597.32,0.29104412]
[1745549723098,1.10749701,598.71,597.33,0.30712934]
[1745549723604,1.10749701,598.7,597.33,0.30712934]
[1745549724199,1.10749701,598.7,597.27,1.0596617]
[1745549724200,1.10749701,598.69,597.28,0.30712934]
[1745549724401,1.10749701,598.69,597.29,0.30712934]
[1745549724900,1.10749701,598.68,597.29,0.30712934]
[1745549725400,1.10749701,598.67,597.29,0.30712934]
[1745549725995,1.10749701,598.67,597.28,0.29106359]
[1745549726201,1.10749701,598.66,597.29,0.30714294]
[1745549726902,1.10749701,598.65,597.29,0.30714294]
[1745549727295,1.10749701,598.64,597.29,0.30714294]
[1745549727497,1.10749701,598.64,597.29,1.0596617]
[1745549727797,1.10749701,598.63,597.3,0.30715539]
[1745549728402,1.10749701,598.62,597.3,0.30715539]
[1745549728801,1.10749701,598.61,597.3,0.30715539]
[1745549729601,1.10749701,598.6,597.3,0.30715539]
[1745549729902,1.10749701,598.59,597.3,0.30715539]
[1745549730103,1.10749701,598.59,597.34,1.0596617]
[1745549730302,1.10749701,598.59,597.35,0.30715539]
[1745549730601,1.10749701,598.58,597.35,0.30715539]
[1745549730997,1.10749701,598.57,597.35,0.30715539]
[1745549731403,1.10749701,598.56,597.35,0.30715539]
[1745549731796,1.10749701,598.55,597.35,0.30715539]
[1745549732202,1.10749701,598.54,597.36,0.30709827]
[1745549732398,1.10749701,598.54,597.35,0.30709827]
[1745549732703,1.10749701,598.53,597.35,0.30709827]
[1745549733106,1.10749701,598.53,597.28,0.30709827]
[1745549733398,1.10749701,598.53,597.29,0.30709827]
[1745549733605,1.10749701,598.52,597.28,0.30709827]
[1745549733806,1.10749701,598.52,597.29,0.30709827]
[1745549734008,1.10749701,598.52,597.3,0.30709827]
[1745549734206,1.10749701,598.52,597.28,0.30709827]
[1745549734403,1.10749701,598.51,597.28,0.30709827]
[1745549734906,1.10749701,598.5,597.28,0.30709827]
[1745549735107,1.10749701,598.5,597.27,1.0596617]
[1745549735305,1.10749701,598.5,597.28,0.30716195]
[1745549735506,1.10749701,598.49,597.28,0.30716195]
[1745549735706,1.10749701,598.48,597.28,0.30716195]
[1745549736007,1.10749701,598.47,597.28,0.30716195]
[1745549736608,1.10749701,598.47,597.19,1.0596617]
[1745549736805,1.10749701,598.46,597.2,0.30716856]
[1745549737109,1.10749701,598.45,597.2,0.30716856]
[1745549737509,1.10749701,598.44,597.2,0.30716856]
[1745549737904,1.10749701,598.43,597.2,0.30716856]
[1745549738109,1.10749701,598.43,597.19,1.0596617]
[1745549738310,1.10749701,598.42,597.2,0.30715853]
[1745549738505,1.10749701,598.42,597.28,1.0596617]
[1745549738805,1.10749701,598.42,597.29,0.30715853]
[1745549739004,1.10749701,598.41,597.29,0.30715853]
[1745549739415,1.10749701,598.4,597.29,0.30715853]
[1745549739712,1.10749701,598.4,597.28,1.0596617]
[1745549739913,1.10749701,598.4,597.29,0.30716629]
[1745549740109,1.10749701,598.39,597.29,0.30716629]
[1745549740713,1.10749701,598.38,597.29,0.30716629]
[1745549741214,2.13965861,599.78,597.18,0.29112934]
[1745549741215,1.10749701,598.37,597.33,1.0596617]
[1745549741415,1.10749701,598.37,597.34,0.307167]
[1745549741713,1.10749701,598.36,597.34,0.307167]
[1745549742413,1.10749701,598.35,597.34,0.307167]
[1745549742812,1.10749701,598.35,597.35,0.30716744]
[1745549743015,1.10749701,598.34,597.36,0.30716744]
[1745549743211,1.10749701,598.33,597.34,0.30716744]
[1745549743412,1.10749701,598.32,597.34,0.30716744]